{"text_format":"1","workbook":"xlsx","n_sheets":3,"sheets":["AHT","BUR","KHT"],"not_rendered":{"charts":3,"images":0,"macros":1,"external_links":0,"defined_names":110,"comments":0,"pivot_tables":0},"unopened":[],"bounds":{"document_bytes":16777216,"sheet_cells":100000,"rows_first":2000,"rows_last":500,"rows_between":2000,"halvings":0,"cell_chars":16384,"cell_head_chars":4096},"cells_cut":0,"cells_raw":0,"read":"whole","date_system":"1900"}

{"sheet":"AHT","index":0,"n_rows":103,"n_cols":24,"rows_kept":103,"cut":false,"hidden":false,"merged":[[0,0,0,5],[0,23,1,23]]}
["Asymmetric Hyperbolic Tangent",null,null,null,null,null,null,null,null,null,null,null,null,null,null,null,null,null,null,null,null,null,"T","Y"]
[null,null,null,null,null,null,null,null,null,null,null,null,null,null,null,null,null,null,null,null,null,null,"(°C)"]
[null,"Experimental data",null,"T (°C)","Y(T)",null,null,null,null,null,null,null,null,null,null,null,null,null,null,null,null,null,-200,{"$f":"(LS+US)/2+(US-LS)/2*TANH(($W3-T0_ATANH)/(C_ATANH+D_ATANH*$W3))","v":3.7250665893395762E-4}]
[null,null,null,-196,9.0508249055091028E-2,{"$f":"IF(ISBLANK(Temperatures),\"\",(LS+US)/2+(US-LS)/2*TANH((Temperatures-T0_ATANH)/(C_ATANH+D_ATANH*Temperatures)))","v":5.7758205194602397E-4},{"$f":"IF(ISBLANK(Temperatures),\"\",Y_values-Fit_ATANH)","v":8.9930667003145004E-2},null,null,null,null,null,null,null,null,null,null,null,null,null,null,null,{"$f":"W3+5","v":-195},6.4335831481798778E-4]
[null,null,null,-175,0.20954177471215019,4.838393682973674E-3,0.20470338102917651,null,null,null,null,null,null,null,null,null,null,null,null,null,null,null,{"$f":"W4+5","v":-190},1.0917318899004158E-3]
[null,null,null,-150,0.56870332602598239,4.3563367079798354E-2,0.52513995894618404,null,null,null,null,null,null,null,null,null,null,null,null,null,null,null,-185,1.821745160796695E-3]
[null,null,null,-125,1.539355712585504,0.29233374050870964,1.2470219720767943,null,null,null,null,null,null,null,null,null,null,null,null,null,null,null,-180,2.9916395473037483E-3]
[null,null,null,-100,4.1368282912810486,1.539355712585504,2.5974725786955446,null,null,null,null,null,null,null,null,null,null,null,null,null,null,null,-175,4.838393682973674E-3]
[null,null,null,-75,10.907950830840363,6.5519784439847371,4.3559723868556262,null,null,null,null,null,null,null,null,null,null,null,null,null,null,null,-170,7.7119475339060273E-3]
[null,null,null,-50,27.416672065087042,22.48769796568385,4.9289740994031916,null,null,null,null,null,null,null,null,null,null,null,null,null,null,null,-165,1.2122165215089353E-2]
[null,null,null,-25,61.856526915098875,59.505619712554939,2.3509072025439366,null,null,null,null,null,null,null,null,null,null,null,null,null,null,null,-160,1.8802467830880687E-2]
[null,null,null,-5,103.53818061813008,103.42318453398954,0.11499608414054308,null,null,null,null,null,null,null,null,null,null,null,null,null,null,null,-155,2.8795010856654812E-2]
[null,null,null,0,115,115,0,null,null,null,null,null,null,null,null,null,null,null,null,null,null,null,-150,4.3563367079798354E-2]
[null,null,null,5,126.46181938186992,126.34907797300933,0.11274140886058603,null,null,null,null,null,null,null,null,null,null,null,null,null,null,null,-145,6.5139898804133622E-2]
[null,null,null,25,168.14347308490113,165.96656355808193,2.1769095268192018,null,null,null,null,null,null,null,null,null,null,null,null,null,null,null,-140,9.6316337422180709E-2]
[null,null,null,50,202.58332793491297,197.87999781414516,4.7033301207678164,null,null,null,null,null,null,null,null,null,null,null,null,null,null,null,-135,0.1408874820237429]
[null,null,null,75,219.09204916915962,214.2263986619418,4.865650507217822,null,null,null,null,null,null,null,null,null,null,null,null,null,null,null,-130,0.20395928446311018]
[null,null,null,100,225.86317170871894,222.07760499677144,3.7855667119474958,null,null,null,null,null,null,null,null,null,null,null,null,null,null,null,-125,0.29233374050870964]
[null,null,null,125,228.46064428741448,225.86317170871894,2.5974725786955446,null,null,null,null,null,null,null,null,null,null,null,null,null,null,null,-120,0.41498368560345966]
[null,null,null,150,229.43129667397403,227.74568764081033,1.6856090331637006,null,null,null,null,null,null,null,null,null,null,null,null,null,null,null,-115,0.58363037652000571]
[null,null,null,175,229.79045822528786,228.7194228949657,1.0710353303221609,null,null,null,null,null,null,null,null,null,null,null,null,null,null,null,-110,0.81343498568823236]
[null,null,null,200,229.92286946999269,229.24383788123515,0.67903158875753888,null,null,null,null,null,null,null,null,null,null,null,null,null,null,null,-105,1.1238109036986543]
[null,null,null,null,null,"","",null,null,null,null,null,null,null,null,null,null,null,null,null,null,null,-100,1.539355712585504]
[null,null,null,null,null,"","",null,null,null,null,null,null,null,null,null,null,null,null,null,null,null,-95,2.0908880768378566]
[null,null,null,null,null,"","",null,null,null,null,null,null,null,null,null,null,null,null,null,null,null,-90,2.8165533571684307]
[null,null,null,null,null,"","",null,null,null,null,null,null,null,null,null,null,null,null,null,null,null,-85,3.7629299272601884]
[null,null,null,null,null,"","",null,null,null,null,null,null,null,null,null,null,null,null,null,null,null,-80,4.9860235499595689]
[null,null,null,null,null,"","",null,null,null,null,null,null,null,null,null,null,null,null,null,null,null,-75,6.5519784439847371]
[null,null,null,null,null,"","",null,null,null,null,null,null,null,null,null,null,null,null,null,null,null,-70,8.5372623996455985]
[null,null,null,null,null,"","",null,null,null,null,null,null,null,null,null,null,null,null,null,null,null,-65,11.028006587988529]
[null,null,null,null,null,"","",null,null,null,null,null,null,null,null,null,null,null,null,null,null,null,-60,14.118114702803197]
[null,null,null,null,null,"","",null,null,null,null,null,null,null,null,null,null,null,null,null,null,null,-55,17.905729338435862]
[null,null,null,null,null,"","",null,null,null,null,null,null,null,null,null,null,null,null,null,null,null,-50,22.48769796568385]
[null,null,null,null,null,"","",null,null,null,null,null,null,null,null,null,null,null,null,null,null,null,-45,27.951866458545609]
[null,null,null,null,null,"","",null,null,null,null,null,null,null,null,null,null,null,null,null,null,null,-40,{"$f":"(LS+US)/2+(US-LS)/2*TANH(($W35-T0_ATANH)/(C_ATANH+D_ATANH*$W35))","v":34.367386406021211}]
["Input data",null,null,null,null,null,null,null,null,null,null,null,null,null,null,null,null,null,null,null,null,null,-35,41.773756864148169]
[null,null,null,null,null,null,null,null,null,null,null,null,null,null,null,null,null,null,null,null,null,null,-30,50.169959871412019]
["LS =",0,"J","RMSE =",{"$f":"SQRT(SUMSQ(Residuals_ATANH)/(COUNT(Y_values)-3))","v":2.8886776036761175},null,null,null,null,null,null,null,null,null,null,null,null,null,null,null,null,null,{"$f":"W37+5","v":-25},59.505619712554939]
["US =",230,"J",null,{"$f":"(LS_Burr+US_Burr)/2","v":{"$error":"#NAME?"}},null,null,0,null,null,null,null,null,null,null,null,null,null,null,null,null,null,-20,69.676364687956323]
[null,null,null,null,{"$f":"LS_Burr+(US_Burr-LS_Burr)*((1+EXP(-k*(#REF!-T0_Burr)))^(-m))","v":{"$error":"#NAME?"}},{"$f":"ABS(E39-E40)","v":{"$error":"#NAME?"}},{"$f":"DBTT_Burr","v":-6.9304947659516261},{"$f":"Y_DBTT","v":{"$error":"#NAME?"}},null,null,null,null,null,null,null,null,null,null,null,null,null,null,-15,80.525249025348629]
[null,null,null,null,null,null,null,null,null,null,null,null,null,null,null,null,null,null,null,null,null,null,-10,91.851101988029086]
["Variables","C =",50,"°C (³ 0)",null,null,null,null,{"$f":"T0_ATANH","v":0},0,null,null,null,null,null,null,null,null,null,null,null,null,-5,103.42318453398954]
[null,"D =",0.1,"1/°C",null,null,null,null,{"$f":"T0_ATANH","v":0},{"$f":"(LS+US)/2","v":115},null,null,null,null,null,null,null,null,null,null,null,null,0,115]
[null,"DBTT =",0,"°C",null,null,null,null,null,null,null,null,null,null,null,null,null,null,null,null,null,null,5,126.34907797300933]
[null,null,null,null,null,null,null,null,null,null,null,null,null,null,null,null,null,null,null,null,null,null,10,137.26441678028763]
[null,null,null,null,null,null,null,null,null,null,null,null,null,null,null,null,null,null,null,null,null,null,15,147.57904786314927]
[null,null,null,null,null,null,null,null,null,null,null,null,null,null,null,null,null,null,null,null,null,null,20,157.1715281431901]
[null,null,null,null,null,null,null,null,null,null,null,null,null,null,null,null,null,null,null,null,null,null,25,165.96656355808193]
[null,null,null,null,null,null,null,null,null,null,null,null,null,null,null,null,null,null,null,null,null,null,30,173.93099482638047]
[null,null,null,null,null,null,null,null,null,null,null,null,null,null,null,null,null,null,null,null,null,null,35,181.06684983706063]
[null,null,null,null,null,null,null,null,null,null,null,null,null,null,null,null,null,null,null,null,null,null,40,187.40313645470769]
[null,null,null,null,null,null,null,null,null,null,null,null,null,null,null,null,null,null,null,null,null,null,45,192.98769938875782]
[null,null,null,null,null,null,null,null,null,null,null,null,null,null,null,null,null,null,null,null,null,null,50,197.87999781414516]
[null,null,null,null,null,null,null,null,null,null,null,null,null,null,null,null,null,null,null,null,null,null,55,202.1452253217675]
[null,null,null,null,null,null,null,null,null,null,null,null,null,null,null,null,null,null,null,null,null,null,60,205.84986544533908]
[null,null,null,null,null,null,null,null,null,null,null,null,null,null,null,null,null,null,null,null,null,null,65,209.05856994816338]
[null,null,null,null,null,null,null,null,null,null,null,null,null,null,null,null,null,null,null,null,null,null,70,211.83214470539332]
[null,null,null,null,null,null,null,null,null,null,null,null,null,null,null,null,null,null,null,null,null,null,{"$f":"W57+5","v":75},214.2263986619418]
[null,null,null,null,null,null,null,null,null,null,null,null,null,null,null,null,null,null,null,null,null,null,80,216.29162547367272]
[null,null,null,null,null,null,null,null,null,null,null,null,null,null,null,null,null,null,null,null,null,null,85,218.07252248312591]
[null,null,null,null,null,null,null,null,null,null,null,null,null,null,null,null,null,null,null,null,null,null,90,219.6083929040864]
[null,null,null,null,null,null,null,null,null,null,null,null,null,null,null,null,null,null,null,null,null,null,95,220.93351621439217]
[null,null,null,null,null,null,null,null,null,null,null,null,null,null,null,null,null,null,null,null,null,null,100,222.07760499677144]
[null,null,null,null,null,null,null,null,null,null,null,null,null,null,null,null,null,null,null,null,null,null,105,223.06629276917073]
[null,null,null,null,null,null,null,null,null,null,null,null,null,null,null,null,null,null,null,null,null,null,110,223.92161710177157]
[null,null,null,null,null,null,null,null,null,null,null,null,null,null,null,null,null,null,null,null,null,null,115,224.66247654302592]
[null,null,null,null,null,null,null,null,null,null,null,null,null,null,null,null,null,null,null,null,null,null,120,{"$f":"(LS+US)/2+(US-LS)/2*TANH(($W67-T0_ATANH)/(C_ATANH+D_ATANH*$W67))","v":225.30504973861574}]
[null,null,null,null,null,null,null,null,null,null,null,null,null,null,null,null,null,null,null,null,null,null,125,225.86317170871894]
[null,null,null,null,null,null,null,null,null,null,null,null,null,null,null,null,null,null,null,null,null,null,{"$f":"W68+5","v":130},226.34866645607869]
[null,null,null,null,null,null,null,null,null,null,null,null,null,null,null,null,null,null,null,null,null,null,135,226.77163762018455]
[null,null,null,null,null,null,null,null,null,null,null,null,null,null,null,null,null,null,null,null,null,null,140,227.14072030376724]
[null,null,null,null,null,null,null,null,null,null,null,null,null,null,null,null,null,null,null,null,null,null,145,227.46329786265528]
[null,null,null,null,null,null,null,null,null,null,null,null,null,null,null,null,null,null,null,null,null,null,150,227.74568764081033]
[null,null,null,null,null,null,null,null,null,null,null,null,null,null,null,null,null,null,null,null,null,null,155,227.99329953598811]
[null,null,null,null,null,null,null,null,null,null,null,null,null,null,null,null,null,null,null,null,null,null,160,228.21077102334979]
[null,null,null,null,null,null,null,null,null,null,null,null,null,null,null,null,null,null,null,null,null,null,165,228.40208192636439]
[null,null,null,null,null,null,null,null,null,null,null,null,null,null,null,null,null,null,null,null,null,null,{"$f":"W76+5","v":170},228.57065185830379]
[null,null,null,null,null,null,null,null,null,null,null,null,null,null,null,null,null,null,null,null,null,null,{"$f":"W77+5","v":175},228.7194228949657]
[null,null,null,null,null,null,null,null,null,null,null,null,null,null,null,null,null,null,null,null,null,null,180,228.8509296978437]
[null,null,null,null,null,null,null,null,null,null,null,null,null,null,null,null,null,null,null,null,null,null,185,228.96735899589859]
[null,null,null,null,null,null,null,null,null,null,null,null,null,null,null,null,null,null,null,null,null,null,190,229.07060005692398]
[null,null,null,null,null,null,null,null,null,null,null,null,null,null,null,null,null,null,null,null,null,null,195,229.16228753642781]
[null,null,null,null,null,null,null,null,null,null,null,null,null,null,null,null,null,null,null,null,null,null,200,229.24383788123515]
[null,null,null,null,null,null,null,null,null,null,null,null,null,null,null,null,null,null,null,null,null,null,205,229.31648028390561]
[null,null,null,null,null,null,null,null,null,null,null,null,null,null,null,null,null,null,null,null,null,null,210,229.38128302939165]
[null,null,null,null,null,null,null,null,null,null,null,null,null,null,null,null,null,null,null,null,null,null,215,229.43917594392138]
[null,null,null,null,null,null,null,null,null,null,null,null,null,null,null,null,null,null,null,null,null,null,220,229.49096954477491]
[null,null,null,null,null,null,null,null,null,null,null,null,null,null,null,null,null,null,null,null,null,null,225,229.53737139561872]
[null,null,null,null,null,null,null,null,null,null,null,null,null,null,null,null,null,null,null,null,null,null,{"$f":"W88+5","v":230},229.57900009281448]
[null,null,null,null,null,null,null,null,null,null,null,null,null,null,null,null,null,null,null,null,null,null,{"$f":"W89+5","v":235},229.61639724140909]
[null,null,null,null,null,null,null,null,null,null,null,null,null,null,null,null,null,null,null,null,null,null,240,229.65003772339986]
[null,null,null,null,null,null,null,null,null,null,null,null,null,null,null,null,null,null,null,null,null,null,245,229.68033851368978]
[null,null,null,null,null,null,null,null,null,null,null,null,null,null,null,null,null,null,null,null,null,null,250,229.7076662594913]
[null,null,null,null,null,null,null,null,null,null,null,null,null,null,null,null,null,null,null,null,null,null,255,229.7323438055937]
[null,null,null,null,null,null,null,null,null,null,null,null,null,null,null,null,null,null,null,null,null,null,260,229.75465581986833]
[null,null,null,null,null,null,null,null,null,null,null,null,null,null,null,null,null,null,null,null,null,null,265,229.77485364978997]
[null,null,null,null,null,null,null,null,null,null,null,null,null,null,null,null,null,null,null,null,null,null,270,229.79315952088751]
[null,null,null,null,null,null,null,null,null,null,null,null,null,null,null,null,null,null,null,null,null,null,{"$f":"W97+5","v":275},229.8097701712943]
[null,null,null,null,null,null,null,null,null,null,null,null,null,null,null,null,null,null,null,null,null,null,{"$f":"W98+5","v":280},229.82486000245163]
[null,null,null,null,null,null,null,null,null,null,null,null,null,null,null,null,null,null,null,null,null,null,285,229.83858381409868]
[null,null,null,null,null,null,null,null,null,null,null,null,null,null,null,null,null,null,null,null,null,null,290,229.85107918161145]
[null,null,null,null,null,null,null,null,null,null,null,null,null,null,null,null,null,null,null,null,null,null,{"$f":"W101+5","v":295},229.86246852523107]
[null,null,null,null,null,null,null,null,null,null,null,null,null,null,null,null,null,null,null,null,null,null,{"$f":"W102+5","v":300},229.87286091350757]

{"sheet":"BUR","index":1,"n_rows":103,"n_cols":25,"rows_kept":103,"cut":false,"hidden":false,"merged":[[0,23,1,23],[0,0,0,5],[0,24,1,24]]}
["Burr distribution",null,null,null,null,null,null,null,null,null,null,null,null,null,null,null,null,null,null,null,null,null,"T","x","Y"]
[null,null,null,null,null,null,null,null,null,null,null,null,null,null,null,null,null,null,null,null,null,null,"(°C)"]
[null,"Experimental data",null,"T (°C)","Y(T)",null,null,null,null,null,null,null,null,null,null,null,null,null,null,null,null,null,-200,{"$f":"(1+EXP(-k*($W3-T0_Burr)))^(-m)","v":2.0611536224385579E-9},{"$f":"LS+(US-LS)*$X3","v":4.7406533316086831E-7}]
[null,null,null,{"$f":"IF(ISBLANK(Temperatures),NA(),Temperatures)","v":-196},{"$f":"IF(ISBLANK(Y_values),NA(),Y_values)","v":9.0508249055091028E-2},{"$f":"IF(ISBLANK(Y_values),\"\",(1+EXP(-k*(Temperatures-T0_Burr)))^(-m))","v":3.0748798795866061E-9},{"$f":"IF(ISBLANK(Y_values),\"\",LS+(US-LS)*Xi_values)","v":7.072223723049194E-7},{"$f":"IF(ISBLANK(Y_values),\"\",Y_values-Fit_BURR)","v":9.0507541832718724E-2},null,null,null,null,null,null,null,null,null,null,null,null,null,null,{"$f":"W3+5","v":-195},3.3982678194950715E-9,7.8160159848386644E-7]
[null,null,null,-175,0.20954177471215019,2.5109991557439816E-8,5.7752980582111576E-6,0.20953599941409198,null,null,null,null,null,null,null,null,null,null,null,null,null,null,{"$f":"W4+5","v":-190},5.6027964375372678E-9,1.2886431806335715E-6]
[null,null,null,-150,0.56870332602598239,3.0590232050182579E-7,7.0357533715419927E-5,0.56863296849226697,null,null,null,null,null,null,null,null,null,null,null,null,null,null,-185,9.2374496619705944E-9,2.1246134222532367E-6]
[null,null,null,-125,1.539355712585504,3.7266531720786705E-6,8.5713022957809417E-4,1.5384985823559258,null,null,null,null,null,null,null,null,null,null,null,null,null,null,-180,1.5229979744712629E-8,3.5028953412839046E-6]
[null,null,null,-100,4.1368282912810486,4.5399929762484847E-5,1.0441983845371514E-2,4.126386307435677,null,null,null,null,null,null,null,null,null,null,null,null,null,null,-175,2.5109991557439816E-8,5.7752980582111576E-6]
[null,null,null,-75,10.907950830840363,5.5308437014783363E-4,0.12720940513400172,10.780741425706362,null,null,null,null,null,null,null,null,null,null,null,null,null,null,-170,4.1399377187851668E-8,9.5218567532058836E-6]
[null,null,null,-50,27.416672065087042,6.737946999085467E-3,1.5497278097896574,25.866944255297383,null,null,null,null,null,null,null,null,null,null,null,null,null,null,-165,6.8256033763348699E-8,1.5698887765570202E-5]
[null,null,null,-25,61.856526915098875,8.2084998623784766E-2,18.879549683470497,42.976977231628382,null,null,null,null,null,null,null,null,null,null,null,null,null,null,-160,1.1253517471925912E-7,2.5883090185429595E-5]
[null,null,null,-5,103.53818061813008,0.606123489967341,139.40840269248844,-35.870222074358352,null,null,null,null,null,null,null,null,null,null,null,null,null,null,-155,1.8553913626159784E-7,4.2674001340167504E-5]
[null,null,null,0,115,0.93303299153680741,214.5975880534657,-99.597588053465699,null,null,null,null,null,null,null,null,null,null,null,null,null,null,-150,3.0590232050182579E-7,7.0357533715419927E-5]
[null,null,null,5,126.46181938186992,0.99932869058015072,229.84559883343468,-103.38377945156476,null,null,null,null,null,null,null,null,null,null,null,null,null,null,-145,5.0434766256788813E-7,1.1599996239061428E-4]
[null,null,null,25,168.14347308490113,0.99999999999861111,229.99999999968057,-61.856526914779437,null,null,null,null,null,null,null,null,null,null,null,null,null,null,-140,8.3152871910356788E-7,1.9125160539382061E-4]
[null,null,null,50,202.58332793491297,1,230,-27.416672065087027,null,null,null,null,null,null,null,null,null,null,null,null,null,null,-135,1.3709590863840845E-6,3.153205898683394E-4]
[null,null,null,75,219.09204916915962,1,230,-10.907950830840377,null,null,null,null,null,null,null,null,null,null,null,null,null,null,-130,2.2603294069810542E-6,5.1987576360564252E-4]
[null,null,null,100,225.86317170871894,1,230,-4.1368282912810628,null,null,null,null,null,null,null,null,null,null,null,null,null,null,-125,3.7266531720786705E-6,8.5713022957809417E-4]
[null,null,null,125,228.46064428741448,1,230,-1.5393557125855182,null,null,null,null,null,null,null,null,null,null,null,null,null,null,-120,6.1442123533282098E-6,1.4131688412654883E-3]
[null,null,null,150,229.43129667397403,1,230,-0.56870332602596818,null,null,null,null,null,null,null,null,null,null,null,null,null,null,-115,1.0130093598630711E-5,2.3299215276850636E-3]
[null,null,null,175,229.79045822528786,1,230,-0.20954177471213598,null,null,null,null,null,null,null,null,null,null,null,null,null,null,-110,1.6701700790245659E-5,3.8413911817565018E-3]
[null,null,null,200,229.92286946999269,1,230,-7.7130530007309517E-2,null,null,null,null,null,null,null,null,null,null,null,null,null,null,-105,2.7536449349747158E-5,6.3333833504418463E-3]
[null,null,null,{"$error":"#N/A"},{"$error":"#N/A"},"","","",null,null,null,null,null,null,null,null,null,null,null,null,null,null,-100,4.5399929762484847E-5,1.0441983845371514E-2]
[null,null,null,{"$error":"#N/A"},{"$error":"#N/A"},"","","",null,null,null,null,null,null,null,null,null,null,null,null,null,null,-95,7.4851829887700585E-5,1.7215920874171134E-2]
[null,null,null,{"$error":"#N/A"},{"$error":"#N/A"},"","","",null,null,null,null,null,null,null,null,null,null,null,null,null,null,-90,1.2340980408667953E-4,2.8384254939936293E-2]
[null,null,null,{"$error":"#N/A"},{"$error":"#N/A"},"","","",null,null,null,null,null,null,null,null,null,null,null,null,null,null,-85,2.0346836901064417E-4,4.6797724872448161E-2]
[null,null,null,{"$error":"#N/A"},{"$error":"#N/A"},"","","",null,null,null,null,null,null,null,null,null,null,null,null,null,null,-80,3.3546262790251185E-4,7.715640441757772E-2]
[null,null,null,{"$error":"#N/A"},{"$error":"#N/A"},"","","",null,null,null,null,null,null,null,null,null,null,null,null,null,null,-75,5.5308437014783363E-4,0.12720940513400172]
[null,null,null,{"$error":"#N/A"},{"$error":"#N/A"},"","","",null,null,null,null,null,null,null,null,null,null,null,null,null,null,-70,9.1188196555451624E-4,0.20973285207753872]
[null,null,null,{"$error":"#N/A"},{"$error":"#N/A"},"","","",null,null,null,null,null,null,null,null,null,null,null,null,null,null,-65,1.5034391929775726E-3,0.34579101438484172]
[null,null,null,{"$error":"#N/A"},{"$error":"#N/A"},"","","",null,null,null,null,null,null,null,null,null,null,null,null,null,null,-60,2.4787521766663585E-3,0.57011300063326242]
[null,null,null,{"$error":"#N/A"},{"$error":"#N/A"},"","","",null,null,null,null,null,null,null,null,null,null,null,null,null,null,-55,4.0867714384640675E-3,0.93995743084673555]
[null,null,null,{"$error":"#N/A"},{"$error":"#N/A"},"","","",null,null,null,null,null,null,null,null,null,null,null,null,null,null,-50,6.737946999085467E-3,1.5497278097896574]
[null,null,null,{"$error":"#N/A"},{"$error":"#N/A"},"","","",null,null,null,null,null,null,null,null,null,null,null,null,null,null,-45,1.1108996538242306E-2,2.5550692037957305]
[null,null,null,{"$error":"#N/A"},{"$error":"#N/A"},"","","",null,null,null,null,null,null,null,null,null,null,null,null,null,null,-40,{"$f":"(1+EXP(-k*($W35-T0_Burr)))^(-m)","v":1.8315638888734182E-2},{"$f":"LS+(US-LS)*$X35","v":4.2125969444088618}]
["Input data",null,null,null,null,null,null,null,null,null,null,null,null,null,null,null,null,null,null,null,null,null,-35,3.0197383422318504E-2,6.9453981871332564]
[null,null,null,null,null,null,null,null,null,null,null,null,null,null,null,null,null,null,null,null,null,null,-30,4.9787068367863473E-2,11.451025724608598]
["LS =",{"$f":"LS","v":0},"J","DBTT =",{"$f":"T0_Burr-LN((0.5^(-1/m))-1)/k","v":-6.9304947659516261},"°C",null,null,null,null,null,null,null,null,null,null,null,null,null,null,null,null,{"$f":"W37+5","v":-25},8.2084998623784766E-2,18.879549683470497]
["US =",{"$f":"US","v":230},"J","RMSE =",{"$f":"SQRT(SUMSQ(Residuals_BURR)/(COUNT(Y_values)-3))","v":42.766382052314839},null,{"$f":"DBTT_Burr","v":-6.9304947659516261},0,null,null,null,null,null,null,null,null,null,null,null,null,null,null,-20,0.13533528320871799,31.127115138005138]
[null,null,null,null,{"$f":"(LS+US)/2","v":115},{"$f":"ABS(E39-E40)","v":72.233617947685161},{"$f":"DBTT_Burr","v":-6.9304947659516261},{"$f":"E40","v":115},null,null,null,null,null,null,null,null,null,null,null,null,null,null,-15,0.2231301533228276,51.319935264250347]
[null,null,null,null,null,null,null,null,null,null,null,null,null,null,null,null,null,null,null,null,null,null,-10,0.36787777104306602,84.611887339905181]
["Variables","k =",1,"(³ 0)",null,null,null,null,null,null,null,null,null,null,null,null,null,null,null,null,null,null,-5,0.606123489967341,139.40840269248844]
[null,"T0 =",0,"°C",null,null,null,null,null,null,null,null,null,null,null,null,null,null,null,null,null,null,0,0.93303299153680741,214.5975880534657]
[null,"m =",0.1,"(³ 0)",null,null,null,null,null,null,null,null,null,null,null,null,null,null,null,null,null,null,5,0.99932869058015072,229.84559883343468]
[null,null,null,null,null,null,null,null,null,null,null,null,null,null,null,null,null,null,null,null,null,null,10,0.99999546012038354,229.99895582768821]
[null,null,null,null,null,null,null,null,null,null,null,null,null,null,null,null,null,null,null,null,null,null,15,0.99999996940977298,229.99999296424778]
[null,null,null,null,null,null,null,null,null,null,null,null,null,null,null,null,null,null,null,null,null,null,20,0.99999999979388465,229.99999995259347]
[null,null,null,null,null,null,null,null,null,null,null,null,null,null,null,null,null,null,null,null,null,null,25,0.99999999999861111,229.99999999968057]
[null,null,null,null,null,null,null,null,null,null,null,null,null,null,null,null,null,null,null,null,null,null,30,0.99999999999999067,229.99999999999787]
[null,null,null,null,null,null,null,null,null,null,null,null,null,null,null,null,null,null,null,null,null,null,35,1,230]
[null,null,null,null,null,null,null,null,null,null,null,null,null,null,null,null,null,null,null,null,null,null,40,1,230]
[null,null,null,null,null,null,null,null,null,null,null,null,null,null,null,null,null,null,null,null,null,null,45,1,230]
[null,null,null,null,null,null,null,null,null,null,null,null,null,null,null,null,null,null,null,null,null,null,50,1,230]
[null,null,null,null,null,null,null,null,null,null,null,null,null,null,null,null,null,null,null,null,null,null,55,1,230]
[null,null,null,null,null,null,null,null,null,null,null,null,null,null,null,null,null,null,null,null,null,null,60,1,230]
[null,null,null,null,null,null,null,null,null,null,null,null,null,null,null,null,null,null,null,null,null,null,65,1,230]
[null,null,null,null,null,null,null,null,null,null,null,null,null,null,null,null,null,null,null,null,null,null,70,1,230]
[null,null,null,null,null,null,null,null,null,null,null,null,null,null,null,null,null,null,null,null,null,null,{"$f":"W57+5","v":75},1,230]
[null,null,null,null,null,null,null,null,null,null,null,null,null,null,null,null,null,null,null,null,null,null,80,1,230]
[null,null,null,null,null,null,null,null,null,null,null,null,null,null,null,null,null,null,null,null,null,null,85,1,230]
[null,null,null,null,null,null,null,null,null,null,null,null,null,null,null,null,null,null,null,null,null,null,90,1,230]
[null,null,null,null,null,null,null,null,null,null,null,null,null,null,null,null,null,null,null,null,null,null,95,1,230]
[null,null,null,null,null,null,null,null,null,null,null,null,null,null,null,null,null,null,null,null,null,null,100,1,230]
[null,null,null,null,null,null,null,null,null,null,null,null,null,null,null,null,null,null,null,null,null,null,105,1,230]
[null,null,null,null,null,null,null,null,null,null,null,null,null,null,null,null,null,null,null,null,null,null,110,1,230]
[null,null,null,null,null,null,null,null,null,null,null,null,null,null,null,null,null,null,null,null,null,null,115,1,230]
[null,null,null,null,null,null,null,null,null,null,null,null,null,null,null,null,null,null,null,null,null,null,120,{"$f":"(1+EXP(-k*($W67-T0_Burr)))^(-m)","v":1},{"$f":"LS+(US-LS)*$X67","v":230}]
[null,null,null,null,null,null,null,null,null,null,null,null,null,null,null,null,null,null,null,null,null,null,125,1,230]
[null,null,null,null,null,null,null,null,null,null,null,null,null,null,null,null,null,null,null,null,null,null,{"$f":"W68+5","v":130},1,230]
[null,null,null,null,null,null,null,null,null,null,null,null,null,null,null,null,null,null,null,null,null,null,135,1,230]
[null,null,null,null,null,null,null,null,null,null,null,null,null,null,null,null,null,null,null,null,null,null,140,1,230]
[null,null,null,null,null,null,null,null,null,null,null,null,null,null,null,null,null,null,null,null,null,null,145,1,230]
[null,null,null,null,null,null,null,null,null,null,null,null,null,null,null,null,null,null,null,null,null,null,150,1,230]
[null,null,null,null,null,null,null,null,null,null,null,null,null,null,null,null,null,null,null,null,null,null,155,1,230]
[null,null,null,null,null,null,null,null,null,null,null,null,null,null,null,null,null,null,null,null,null,null,160,1,230]
[null,null,null,null,null,null,null,null,null,null,null,null,null,null,null,null,null,null,null,null,null,null,165,1,230]
[null,null,null,null,null,null,null,null,null,null,null,null,null,null,null,null,null,null,null,null,null,null,{"$f":"W76+5","v":170},1,230]
[null,null,null,null,null,null,null,null,null,null,null,null,null,null,null,null,null,null,null,null,null,null,{"$f":"W77+5","v":175},1,230]
[null,null,null,null,null,null,null,null,null,null,null,null,null,null,null,null,null,null,null,null,null,null,180,1,230]
[null,null,null,null,null,null,null,null,null,null,null,null,null,null,null,null,null,null,null,null,null,null,185,1,230]
[null,null,null,null,null,null,null,null,null,null,null,null,null,null,null,null,null,null,null,null,null,null,190,1,230]
[null,null,null,null,null,null,null,null,null,null,null,null,null,null,null,null,null,null,null,null,null,null,195,1,230]
[null,null,null,null,null,null,null,null,null,null,null,null,null,null,null,null,null,null,null,null,null,null,200,1,230]
[null,null,null,null,null,null,null,null,null,null,null,null,null,null,null,null,null,null,null,null,null,null,205,1,230]
[null,null,null,null,null,null,null,null,null,null,null,null,null,null,null,null,null,null,null,null,null,null,210,1,230]
[null,null,null,null,null,null,null,null,null,null,null,null,null,null,null,null,null,null,null,null,null,null,215,1,230]
[null,null,null,null,null,null,null,null,null,null,null,null,null,null,null,null,null,null,null,null,null,null,220,1,230]
[null,null,null,null,null,null,null,null,null,null,null,null,null,null,null,null,null,null,null,null,null,null,225,1,230]
[null,null,null,null,null,null,null,null,null,null,null,null,null,null,null,null,null,null,null,null,null,null,{"$f":"W88+5","v":230},1,230]
[null,null,null,null,null,null,null,null,null,null,null,null,null,null,null,null,null,null,null,null,null,null,{"$f":"W89+5","v":235},1,230]
[null,null,null,null,null,null,null,null,null,null,null,null,null,null,null,null,null,null,null,null,null,null,240,1,230]
[null,null,null,null,null,null,null,null,null,null,null,null,null,null,null,null,null,null,null,null,null,null,245,1,230]
[null,null,null,null,null,null,null,null,null,null,null,null,null,null,null,null,null,null,null,null,null,null,250,1,230]
[null,null,null,null,null,null,null,null,null,null,null,null,null,null,null,null,null,null,null,null,null,null,255,1,230]
[null,null,null,null,null,null,null,null,null,null,null,null,null,null,null,null,null,null,null,null,null,null,260,1,230]
[null,null,null,null,null,null,null,null,null,null,null,null,null,null,null,null,null,null,null,null,null,null,265,1,230]
[null,null,null,null,null,null,null,null,null,null,null,null,null,null,null,null,null,null,null,null,null,null,270,1,230]
[null,null,null,null,null,null,null,null,null,null,null,null,null,null,null,null,null,null,null,null,null,null,{"$f":"W97+5","v":275},1,230]
[null,null,null,null,null,null,null,null,null,null,null,null,null,null,null,null,null,null,null,null,null,null,{"$f":"W98+5","v":280},1,230]
[null,null,null,null,null,null,null,null,null,null,null,null,null,null,null,null,null,null,null,null,null,null,285,1,230]
[null,null,null,null,null,null,null,null,null,null,null,null,null,null,null,null,null,null,null,null,null,null,290,1,230]
[null,null,null,null,null,null,null,null,null,null,null,null,null,null,null,null,null,null,null,null,null,null,{"$f":"W101+5","v":295},1,230]
[null,null,null,null,null,null,null,null,null,null,null,null,null,null,null,null,null,null,null,null,null,null,{"$f":"W102+5","v":300},1,230]

{"sheet":"KHT","index":2,"n_rows":103,"n_cols":26,"rows_kept":103,"cut":false,"hidden":false,"merged":[[0,0,0,5],[0,23,1,23],[0,24,1,24],[0,25,1,25]]}
["Kohout model (asymmetric)",null,null,null,null,null,null,null,null,null,null,null,null,null,null,null,null,null,null,null,null,null,"T","Y (T≤T0)","Y (T>T0)","Y"]
[null,null,null,null,null,null,null,null,null,null,null,null,null,null,null,null,null,null,null,null,null,null,"(°C)"]
[null,"Experimental data",null,"T (°C)","Y(T)",null,null,null,null,null,null,null,null,null,null,null,null,null,null,null,null,null,-200,{"$f":"LS+(US-LS)/(1+p)*EXP((1+p)/(2*C_Kohout)*($W3-T0_Kohout))","v":4.8856073935853269E-16},{"$f":"US-p*(US-LS)/(1+p)*EXP(-(1+p)/(2*p*C_Kohout)*($W3-T0_Kohout))","v":-2.7069305686257299E+19},{"$f":"IF($W3<=T0_Kohout,$X3,$Y3)","v":4.8856073935853269E-16}]
[null,null,null,{"$f":"IF(ISBLANK(Temperatures),NA(),Temperatures)","v":-196},{"$f":"IF(ISBLANK(Y_values),NA(),Y_values)","v":9.0508249055091028E-2},{"$f":"IF(ISBLANK(Temperatures),\"\",LS+(US-LS)/(1+p)*EXP((1+p)/(2*C_Kohout)*(Temperatures-T0_Kohout)))","v":1.0873119214969523E-15},{"$f":"IF(ISBLANK(Temperatures),\"\",US-p*(US-LS)/(1+p)*EXP(-(1+p)/(2*p*C_Kohout)*(Temperatures-T0_Kohout)))","v":-1.2163023083378442E+19},{"$f":"IF(ISBLANK(Temperatures),\"\",IF(Temperatures<=T0_Kohout,Fit1_KASYM,Fit2_KASYM))","v":1.0873119214969523E-15},{"$f":"IF(ISBLANK(Temperatures),\"\",Y_values-Fit_KASYM)","v":9.0508249055089945E-2},null,null,null,null,null,null,null,null,null,null,null,null,null,{"$f":"W3+5","v":-195},1.3280457798968153E-15,-9.9582410487592796E+18,1.3280457798968153E-15]
[null,null,null,-175,0.20954177471215019,7.2508842741690373E-14,-1.8239154701604432E+17,7.2508842741690373E-14,0.20954177471207769,null,null,null,null,null,null,null,null,null,null,null,null,null,{"$f":"W4+5","v":-190},3.6100027108552343E-15,-3.6634321520680822E+18,3.6100027108552343E-15]
[null,null,null,-150,0.56870332602598239,1.0761266414166201E-11,-1228944576875083.3,1.0761266414166201E-11,0.56870332601522111,null,null,null,null,null,null,null,null,null,null,null,null,null,-185,9.8130047696056751E-15,-1.3477013728723E+18,9.8130047696056751E-15]
[null,null,null,-125,1.539355712585504,1.5971135444708623E-9,-8280563423569.376,1.5971135444708623E-9,1.5393557109883904,null,null,null,null,null,null,null,null,null,null,null,null,null,-180,2.6674512547801045E-14,-4.9579162791824717E+17,2.6674512547801045E-14]
[null,null,null,-100,4.1368282912810486,2.3703266658043415E-7,-55793997242.125885,2.3703266658043415E-7,4.1368280542483822,null,null,null,null,null,null,null,null,null,null,null,null,null,-175,7.2508842741690373E-14,-1.8239154701604432E+17,7.2508842741690373E-14]
[null,null,null,-75,10.907950830840363,3.5178766857709963E-5,-375936767.83429271,3.5178766857709963E-5,10.907915652073505,null,null,null,null,null,null,null,null,null,null,null,null,null,-170,1.970994696273315E-13,-6.709810039065708E+16,1.970994696273315E-13]
[null,null,null,-50,27.416672065087042,5.220991922685758E-3,-2532813.5664027724,5.220991922685758E-3,27.411451073164358,null,null,null,null,null,null,null,null,null,null,null,null,null,-165,5.3577190668689075E-13,-2.468401167538012E+16,5.3577190668689075E-13]
[null,null,null,-25,61.856526915098875,0.7748639048948287,-16837.513296796307,0.7748639048948287,61.081663010204046,null,null,null,null,null,null,null,null,null,null,null,null,null,-160,1.4563790381458301E-12,-9080740421008050,1.4563790381458301E-12]
[null,null,null,-5,103.53818061813008,42.306135734715866,-82.602410272790166,42.306135734715866,61.232044883414218,null,null,null,null,null,null,null,null,null,null,null,null,null,-155,3.9588486747404732E-12,-3340617711503224,3.9588486747404732E-12]
[null,null,null,0,115,115,115,115,0,null,null,null,null,null,null,null,null,null,null,null,null,null,-150,1.0761266414166201E-11,-1228944576875083.3,1.0761266414166201E-11]
[null,null,null,5,126.46181938186992,312.60241027279017,187.69386426528413,187.69386426528413,-61.232044883414218,null,null,null,null,null,null,null,null,null,null,null,null,null,-145,2.9252154944834613E-11,-452103444171334.81,2.9252154944834613E-11]
[null,null,null,25,168.14347308490113,17067.513296796307,229.22513609510517,229.22513609510517,-61.081663010204039,null,null,null,null,null,null,null,null,null,null,null,null,null,-140,7.9515601229812333E-11,-166319562393289.63,7.9515601229812333E-11]
[null,null,null,50,202.58332793491297,2533043.5664027724,229.9947790080773,229.9947790080773,-27.411451073164329,null,null,null,null,null,null,null,null,null,null,null,null,null,-135,2.1614581390199458E-10,-61185547668976.844,2.1614581390199458E-10]
[null,null,null,75,219.09204916915962,375936997.83429271,229.99996482123314,229.99996482123314,-10.907915652073513,null,null,null,null,null,null,null,null,null,null,null,null,null,-130,5.8754523822728236E-10,-22508905084086.461,5.8754523822728236E-10]
[null,null,null,100,225.86317170871894,55793997472.125885,229.99999976296732,229.99999976296732,-4.1368280542483831,null,null,null,null,null,null,null,null,null,null,null,null,null,-125,1.5971135444708623E-9,-8280563423569.376,1.5971135444708623E-9]
[null,null,null,125,228.46064428741448,8280563423799.376,229.9999999984029,229.9999999984029,-1.5393557109884171,null,null,null,null,null,null,null,null,null,null,null,null,null,-120,4.3414047259209624E-9,-3046249044701.999,4.3414047259209624E-9]
[null,null,null,150,229.43129667397403,1228944576875313.3,229.99999999998923,229.99999999998923,-0.56870332601519635,null,null,null,null,null,null,null,null,null,null,null,null,null,-115,1.1801161576457174E-8,-1120652396088.6238,1.1801161576457174E-8]
[null,null,null,175,229.79045822528786,1.8239154701604454E+17,229.99999999999991,229.99999999999991,-0.20954177471205071,null,null,null,null,null,null,null,null,null,null,null,null,null,-110,3.2078883067992636E-8,-412264977075.13306,3.2078883067992636E-8]
[null,null,null,200,229.92286946999269,2.7069305686257299E+19,230,230,-7.7130530007309517E-2,null,null,null,null,null,null,null,null,null,null,null,null,null,-105,8.7199444920986925E-8,-151663809235.56967,8.7199444920986925E-8]
[null,null,null,{"$error":"#N/A"},{"$error":"#N/A"},"","","","",null,null,null,null,null,null,null,null,null,null,null,null,null,-100,2.3703266658043415E-7,-55793997242.125885,2.3703266658043415E-7]
[null,null,null,{"$error":"#N/A"},{"$error":"#N/A"},"","","","",null,null,null,null,null,null,null,null,null,null,null,null,null,-95,6.4432159031678576E-7,-20525464380.766533,6.4432159031678576E-7]
[null,null,null,{"$error":"#N/A"},{"$error":"#N/A"},"","","","",null,null,null,null,null,null,null,null,null,null,null,null,null,-90,1.7514476706419523E-6,-7550896220.7930088,1.7514476706419523E-6]
[null,null,null,{"$error":"#N/A"},{"$error":"#N/A"},"","","","",null,null,null,null,null,null,null,null,null,null,null,null,null,-85,4.7609283766029418E-6,-2777819336.6611595,4.7609283766029418E-6]
[null,null,null,{"$error":"#N/A"},{"$error":"#N/A"},"","","","",null,null,null,null,null,null,null,null,null,null,null,null,null,-80,1.2941545092714798E-5,-1021902479.8584054,1.2941545092714798E-5]
[null,null,null,{"$error":"#N/A"},{"$error":"#N/A"},"","","","",null,null,null,null,null,null,null,null,null,null,null,null,null,-75,3.5178766857709963E-5,-375936767.83429271,3.5178766857709963E-5]
[null,null,null,{"$error":"#N/A"},{"$error":"#N/A"},"","","","",null,null,null,null,null,null,null,null,null,null,null,null,null,-70,9.5625802696910304E-5,-138299262.67894933,9.5625802696910304E-5]
[null,null,null,{"$error":"#N/A"},{"$error":"#N/A"},"","","","",null,null,null,null,null,null,null,null,null,null,null,null,null,-65,2.5993788180282126E-4,-50877310.081025854,2.5993788180282126E-4]
[null,null,null,{"$error":"#N/A"},{"$error":"#N/A"},"","","","",null,null,null,null,null,null,null,null,null,null,null,null,null,-60,7.0658442063274414E-4,-18716571.013185449,7.0658442063274414E-4]
[null,null,null,{"$error":"#N/A"},{"$error":"#N/A"},"","","","",null,null,null,null,null,null,null,null,null,null,null,null,null,-55,1.9206955908782509E-3,-6885296.2972477488,1.9206955908782509E-3]
[null,null,null,{"$error":"#N/A"},{"$error":"#N/A"},"","","","",null,null,null,null,null,null,null,null,null,null,null,null,null,-50,5.220991922685758E-3,-2532813.5664027724,5.220991922685758E-3]
[null,null,null,{"$error":"#N/A"},{"$error":"#N/A"},"","","","",null,null,null,null,null,null,null,null,null,null,null,null,null,-45,1.419212746996815E-2,-931624.65167116921,1.419212746996815E-2]
[null,null,null,{"$error":"#N/A"},{"$error":"#N/A"},"","","","",null,null,null,null,null,null,null,null,null,null,null,null,null,-40,{"$f":"LS+(US-LS)/(1+p)*EXP((1+p)/(2*C_Kohout)*($W35-T0_Kohout))","v":3.857820220878886E-2},{"$f":"US-p*(US-LS)/(1+p)*EXP(-(1+p)/(2*p*C_Kohout)*($W35-T0_Kohout))","v":-342580.16850979876},{"$f":"IF($W35<=T0_Kohout,$X35,$Y35)","v":3.857820220878886E-2}]
["Input data",null,null,null,null,null,null,null,null,null,null,null,null,null,null,null,null,null,null,null,null,null,-35,0.10486642603876936,-125882.81321927272,0.10486642603876936]
[null,null,null,null,{"$f":"T0_Kohout+2*C_Kohout/(1+p)*LN((1+p)/2)","v":0},{"$f":"T0_Kohout-p*2*C_Kohout/(1+p)*LN((1+p)/(2*p))","v":0},null,null,null,null,null,null,null,null,null,null,null,null,null,null,null,null,-30,0.28505650031663121,-46164.311251664534,0.28505650031663121]
["LS =",{"$f":"LS","v":0},"J","DBTT =",{"$f":"IF(AVERAGE(DBTT1_KASYM,DBTT2_KASYM)<T0_Kohout,DBTT1_KASYM,DBTT2_KASYM)","v":0},"°C",null,null,null,null,null,null,null,null,null,null,null,null,null,null,null,null,{"$f":"W37+5","v":-25},0.7748639048948287,-16837.513296796307,0.7748639048948287]
["US =",{"$f":"US","v":230},"J","RMSE =",{"$f":"SQRT(SUMSQ(Residuals_KASYM)/(COUNT(Y_values)-3))","v":32.346871012743371},null,{"$f":"DBTT_Kohout","v":0},0,null,null,null,null,null,null,null,null,null,null,null,null,null,null,-20,2.1062984722044304,-6048.7872538115871,2.1062984722044304]
[null,null,null,null,{"$f":"IF(DBTT_Kohout<=T0_Kohout,LS_Kohout+(US_Kohout-LS_Kohout)/(1+p)*EXP((1+p)/(2*C_Kohout)*(DBTT_Kohout-T0_Kohout)),US_Kohout-p*(US_Kohout-LS_Kohout)/(1+p)*EXP(-(1+p)/(2*p*C_Kohout)*(DBTT_Kohout-T0_Kohout)))","v":{"$error":"#NAME?"}},{"$f":"ABS(E39-E40)","v":{"$error":"#NAME?"}},{"$f":"DBTT_Kohout","v":0},{"$f":"(LS+US)/2","v":115},null,null,null,null,null,null,null,null,null,null,null,null,null,null,-15,5.7255128623043534,-2079.8367461665816,5.7255128623043534]
[null,null,null,null,null,null,null,null,null,null,null,null,null,null,null,null,null,null,null,null,null,null,-10,15.563557572210462,-619.74145137702476,15.563557572210462]
["Variables","C =",5,"°C (³ 0)",null,null,null,null,null,null,null,null,null,null,null,null,null,null,null,null,null,null,-5,42.306135734715866,-82.602410272790166,42.306135734715866]
[null,"T0 =",0,"°C",null,null,null,null,null,null,null,null,null,null,null,null,null,null,null,null,null,null,0,115,115,115]
[null,"p =",1,"(³ 0)",null,null,null,null,null,null,null,null,null,null,null,null,null,null,null,null,null,null,5,312.60241027279017,187.69386426528413,187.69386426528413]
[null,null,null,null,null,null,null,null,null,null,null,null,null,null,null,null,null,null,null,null,null,null,10,849.74145137702476,214.43644242778953,214.43644242778953]
[null,null,null,null,null,null,null,null,null,null,null,null,null,null,null,null,null,null,null,null,null,null,15,2309.8367461665816,224.27448713769564,224.27448713769564]
[null,null,null,null,null,null,null,null,null,null,null,null,null,null,null,null,null,null,null,null,null,null,20,6278.7872538115871,227.89370152779557,227.89370152779557]
[null,null,null,null,null,null,null,null,null,null,null,null,null,null,null,null,null,null,null,null,null,null,25,17067.513296796307,229.22513609510517,229.22513609510517]
[null,null,null,null,null,null,null,null,null,null,null,null,null,null,null,null,null,null,null,null,null,null,30,46394.311251664534,229.71494349968336,229.71494349968336]
[null,null,null,null,null,null,null,null,null,null,null,null,null,null,null,null,null,null,null,null,null,null,35,126112.81321927272,229.89513357396123,229.89513357396123]
[null,null,null,null,null,null,null,null,null,null,null,null,null,null,null,null,null,null,null,null,null,null,40,342810.16850979876,229.96142179779122,229.96142179779122]
[null,null,null,null,null,null,null,null,null,null,null,null,null,null,null,null,null,null,null,null,null,null,45,931854.65167116921,229.98580787253005,229.98580787253005]
[null,null,null,null,null,null,null,null,null,null,null,null,null,null,null,null,null,null,null,null,null,null,50,2533043.5664027724,229.9947790080773,229.9947790080773]
[null,null,null,null,null,null,null,null,null,null,null,null,null,null,null,null,null,null,null,null,null,null,55,6885526.2972477488,229.99807930440912,229.99807930440912]
[null,null,null,null,null,null,null,null,null,null,null,null,null,null,null,null,null,null,null,null,null,null,60,18716801.013185449,229.99929341557936,229.99929341557936]
[null,null,null,null,null,null,null,null,null,null,null,null,null,null,null,null,null,null,null,null,null,null,65,50877540.081025854,229.99974006211821,229.99974006211821]
[null,null,null,null,null,null,null,null,null,null,null,null,null,null,null,null,null,null,null,null,null,null,70,138299492.67894933,229.99990437419731,229.99990437419731]
[null,null,null,null,null,null,null,null,null,null,null,null,null,null,null,null,null,null,null,null,null,null,{"$f":"W57+5","v":75},375936997.83429271,229.99996482123314,229.99996482123314]
[null,null,null,null,null,null,null,null,null,null,null,null,null,null,null,null,null,null,null,null,null,null,80,1021902709.8584054,229.99998705845491,229.99998705845491]
[null,null,null,null,null,null,null,null,null,null,null,null,null,null,null,null,null,null,null,null,null,null,85,2777819566.6611595,229.99999523907164,229.99999523907164]
[null,null,null,null,null,null,null,null,null,null,null,null,null,null,null,null,null,null,null,null,null,null,90,7550896450.7930088,229.99999824855232,229.99999824855232]
[null,null,null,null,null,null,null,null,null,null,null,null,null,null,null,null,null,null,null,null,null,null,95,20525464610.766533,229.9999993556784,229.9999993556784]
[null,null,null,null,null,null,null,null,null,null,null,null,null,null,null,null,null,null,null,null,null,null,100,55793997472.125885,229.99999976296732,229.99999976296732]
[null,null,null,null,null,null,null,null,null,null,null,null,null,null,null,null,null,null,null,null,null,null,105,151663809465.56967,229.99999991280055,229.99999991280055]
[null,null,null,null,null,null,null,null,null,null,null,null,null,null,null,null,null,null,null,null,null,null,110,412264977305.13306,229.99999996792113,229.99999996792113]
[null,null,null,null,null,null,null,null,null,null,null,null,null,null,null,null,null,null,null,null,null,null,115,1120652396318.6238,229.99999998819885,229.99999998819885]
[null,null,null,null,null,null,null,null,null,null,null,null,null,null,null,null,null,null,null,null,null,null,120,{"$f":"LS+(US-LS)/(1+p)*EXP((1+p)/(2*C_Kohout)*($W67-T0_Kohout))","v":3046249044931.999},{"$f":"US-p*(US-LS)/(1+p)*EXP(-(1+p)/(2*p*C_Kohout)*($W67-T0_Kohout))","v":229.99999999565858},{"$f":"IF($W67<=T0_Kohout,$X67,$Y67)","v":229.99999999565858}]
[null,null,null,null,null,null,null,null,null,null,null,null,null,null,null,null,null,null,null,null,null,null,125,8280563423799.376,229.9999999984029,229.9999999984029]
[null,null,null,null,null,null,null,null,null,null,null,null,null,null,null,null,null,null,null,null,null,null,{"$f":"W68+5","v":130},22508905084316.461,229.99999999941247,229.99999999941247]
[null,null,null,null,null,null,null,null,null,null,null,null,null,null,null,null,null,null,null,null,null,null,135,61185547669206.844,229.99999999978385,229.99999999978385]
[null,null,null,null,null,null,null,null,null,null,null,null,null,null,null,null,null,null,null,null,null,null,140,166319562393519.63,229.99999999992048,229.99999999992048]
[null,null,null,null,null,null,null,null,null,null,null,null,null,null,null,null,null,null,null,null,null,null,145,452103444171564.81,229.99999999997075,229.99999999997075]
[null,null,null,null,null,null,null,null,null,null,null,null,null,null,null,null,null,null,null,null,null,null,150,1228944576875313.3,229.99999999998923,229.99999999998923]
[null,null,null,null,null,null,null,null,null,null,null,null,null,null,null,null,null,null,null,null,null,null,155,3340617711503454,229.99999999999605,229.99999999999605]
[null,null,null,null,null,null,null,null,null,null,null,null,null,null,null,null,null,null,null,null,null,null,160,9080740421008280,229.99999999999855,229.99999999999855]
[null,null,null,null,null,null,null,null,null,null,null,null,null,null,null,null,null,null,null,null,null,null,165,2.4684011675380348E+16,229.99999999999946,229.99999999999946]
[null,null,null,null,null,null,null,null,null,null,null,null,null,null,null,null,null,null,null,null,null,null,{"$f":"W76+5","v":170},6.7098100390657312E+16,229.9999999999998,229.9999999999998]
[null,null,null,null,null,null,null,null,null,null,null,null,null,null,null,null,null,null,null,null,null,null,{"$f":"W77+5","v":175},1.8239154701604454E+17,229.99999999999991,229.99999999999991]
[null,null,null,null,null,null,null,null,null,null,null,null,null,null,null,null,null,null,null,null,null,null,180,4.9579162791824742E+17,229.99999999999997,229.99999999999997]
[null,null,null,null,null,null,null,null,null,null,null,null,null,null,null,null,null,null,null,null,null,null,185,1.3477013728723003E+18,230,230]
[null,null,null,null,null,null,null,null,null,null,null,null,null,null,null,null,null,null,null,null,null,null,190,3.6634321520680822E+18,230,230]
[null,null,null,null,null,null,null,null,null,null,null,null,null,null,null,null,null,null,null,null,null,null,195,9.9582410487592796E+18,230,230]
[null,null,null,null,null,null,null,null,null,null,null,null,null,null,null,null,null,null,null,null,null,null,200,2.7069305686257299E+19,230,230]
[null,null,null,null,null,null,null,null,null,null,null,null,null,null,null,null,null,null,null,null,null,null,205,7.3582001755956314E+19,230,230]
[null,null,null,null,null,null,null,null,null,null,null,null,null,null,null,null,null,null,null,null,null,null,210,2.0001661827485762E+20,230,230]
[null,null,null,null,null,null,null,null,null,null,null,null,null,null,null,null,null,null,null,null,null,null,215,5.4370153884637482E+20,230,230]
[null,null,null,null,null,null,null,null,null,null,null,null,null,null,null,null,null,null,null,null,null,null,220,1.4779340131513205E+21,230,230]
[null,null,null,null,null,null,null,null,null,null,null,null,null,null,null,null,null,null,null,null,null,null,225,4.0174411716107861E+21,230,230]
[null,null,null,null,null,null,null,null,null,null,null,null,null,null,null,null,null,null,null,null,null,null,{"$f":"W88+5","v":230},1.0920537333692816E+22,230,230]
[null,null,null,null,null,null,null,null,null,null,null,null,null,null,null,null,null,null,null,null,null,null,{"$f":"W89+5","v":235},2.9685098191185777E+22,230,230]
[null,null,null,null,null,null,null,null,null,null,null,null,null,null,null,null,null,null,null,null,null,null,240,8.0692462989122755E+22,230,230]
[null,null,null,null,null,null,null,null,null,null,null,null,null,null,null,null,null,null,null,null,null,null,245,2.1934485583693648E+23,230,230]
[null,null,null,null,null,null,null,null,null,null,null,null,null,null,null,null,null,null,null,null,null,null,250,5.9624113578751329E+23,230,230]
[null,null,null,null,null,null,null,null,null,null,null,null,null,null,null,null,null,null,null,null,null,null,255,1.6207514447909796E+24,230,230]
[null,null,null,null,null,null,null,null,null,null,null,null,null,null,null,null,null,null,null,null,null,null,260,4.4056592008240637E+24,230,230]
[null,null,null,null,null,null,null,null,null,null,null,null,null,null,null,null,null,null,null,null,null,null,265,1.1975823347983452E+25,230,230]
[null,null,null,null,null,null,null,null,null,null,null,null,null,null,null,null,null,null,null,null,null,null,270,3.255366298765898E+25,230,230]
[null,null,null,null,null,null,null,null,null,null,null,null,null,null,null,null,null,null,null,null,null,null,{"$f":"W97+5","v":275},8.8490030549133194E+25,230,230]
[null,null,null,null,null,null,null,null,null,null,null,null,null,null,null,null,null,null,null,null,null,null,{"$f":"W98+5","v":280},2.4054084204149455E+26,230,230]
[null,null,null,null,null,null,null,null,null,null,null,null,null,null,null,null,null,null,null,null,null,null,285,6.5385779992363223E+26,230,230]
[null,null,null,null,null,null,null,null,null,null,null,null,null,null,null,null,null,null,null,null,null,null,290,1.7773697759286194E+27,230,230]
[null,null,null,null,null,null,null,null,null,null,null,null,null,null,null,null,null,null,null,null,null,null,{"$f":"W101+5","v":295},4.8313919643590917E+27,230,230]
[null,null,null,null,null,null,null,null,null,null,null,null,null,null,null,null,null,null,null,null,null,null,{"$f":"W102+5","v":300},1.3133084982880369E+28,230,230]